[Event "Early-Titled-Tuesday-Blitz-February-06-2024"]
[Site "Chess.com"]
[Date "2024.02.06"]
[Round "5"]
[White "AryanTari"]
[Black "Perecke"]
[Result "1-0"]
[WhiteElo "2937"]
[BlackElo "2597"]
[TimeControl "180+1"]
[EndTime "8:52:10 PST"]
[Termination "AryanTari won by resignation"]

1. d4 {[%clk 0:02:54.7]} 1... Nf6 {[%clk 0:02:59.4]} 2. Bf4 {[%clk 0:02:54.3]}
2... d5 {[%clk 0:02:58.1]} 3. e3 {[%clk 0:02:53.7]} 3... c5 {[%clk 0:02:58.1]}
4. dxc5 {[%clk 0:02:51.2]} 4... Nc6 {[%clk 0:02:56.2]} 5. Bb5 {[%clk 0:02:43.5]}
5... e6 {[%clk 0:02:44.6]} 6. b4 {[%clk 0:02:40.3]} 6... a5 {[%clk 0:02:41.5]}
7. c3 {[%clk 0:02:39.9]} 7... Bd7 {[%clk 0:02:41.8]} 8. a4 {[%clk 0:02:33.5]}
8... Be7 {[%clk 0:02:27.3]} 9. Nf3 {[%clk 0:02:32.1]} 9... O-O {[%clk
0:02:27.3]} 10. O-O {[%clk 0:02:27]} 10... b6 {[%clk 0:02:12.4]} 11. Bxc6 {[%clk
0:02:23.1]} 11... Bxc6 {[%clk 0:02:10.4]} 12. b5 {[%clk 0:02:23.4]} 12... Bb7
{[%clk 0:02:06.8]} 13. c6 {[%clk 0:02:23.4]} 13... Bc8 {[%clk 0:02:06.8]} 14.
Nbd2 {[%clk 0:02:19.5]} 14... Bd6 {[%clk 0:02:05.6]} 15. Bg3 {[%clk 0:02:13.7]}
15... Qe7 {[%clk 0:01:59.2]} 16. c4 {[%clk 0:02:12.4]} 16... Rd8 {[%clk
0:01:53.4]} 17. Qb3 {[%clk 0:02:00.1]} 17... e5 {[%clk 0:01:48.3]} 18. cxd5
{[%clk 0:01:56.1]} 18... e4 {[%clk 0:01:47.6]} 19. Nd4 {[%clk 0:01:50]} 19...
Bxg3 {[%clk 0:01:32.4]} 20. hxg3 {[%clk 0:01:45.8]} 20... Nxd5 {[%clk
0:01:30.3]} 21. Qc2 {[%clk 0:01:39.7]} 21... Nb4 {[%clk 0:01:26.4]} 22. Qxe4
{[%clk 0:01:35.9]} 1-0

[Event "Early-Titled-Tuesday-Blitz-February-06-2024"]
[Site "Chess.com"]
[Date "2024.02.06"]
[Round "5"]
[White "HelvertHernandez"]
[Black "mary-sanna"]
[Result "0-1"]
[WhiteElo "1918"]
[BlackElo "2191"]
[TimeControl "180+1"]
[EndTime "8:52:12 PST"]
[Termination "mary-sanna won by resignation"]

1. e4 {[%clk 0:03:00.9]} 1... c5 {[%clk 0:02:56.3]} 2. Nf3 {[%clk 0:03:00.3]}
2... Nc6 {[%clk 0:02:55.8]} 3. d4 {[%clk 0:03:00.1]} 3... cxd4 {[%clk
0:02:56.7]} 4. Nxd4 {[%clk 0:03:00.2]} 4... Nf6 {[%clk 0:02:57.3]} 5. Nc3 {[%clk
0:03:00.2]} 5... e5 {[%clk 0:02:57.3]} 6. Ndb5 {[%clk 0:03:00.3]} 6... d6 {[%clk
0:02:57.6]} 7. Bg5 {[%clk 0:03:00.3]} 7... a6 {[%clk 0:02:57.7]} 8. Na3 {[%clk
0:03:00.4]} 8... b5 {[%clk 0:02:58.1]} 9. Nd5 {[%clk 0:03:00.6]} 9... Be7 {[%clk
0:02:57.2]} 10. Bxf6 {[%clk 0:03:00.9]} 10... gxf6 {[%clk 0:02:56.3]} 11. c3
{[%clk 0:02:57.8]} 11... f5 {[%clk 0:02:55.8]} 12. f3 {[%clk 0:02:51.4]} 12...
Rb8 {[%clk 0:02:37.5]} 13. Nc2 {[%clk 0:02:50.2]} 13... f4 {[%clk 0:02:08.5]}
14. Bd3 {[%clk 0:02:42]} 14... Bh4+ {[%clk 0:02:06.5]} 15. Ke2 {[%clk
0:02:37.1]} 15... Rg8 {[%clk 0:02:00]} 16. Rg1 {[%clk 0:02:29.7]} 16... Be6
{[%clk 0:01:56.5]} 17. Ncb4 {[%clk 0:02:16.1]} 17... Nxb4 {[%clk 0:01:48.6]} 18.
Nxb4 {[%clk 0:02:14.2]} 18... Qb6 {[%clk 0:01:48.2]} 19. Qd2 {[%clk 0:02:04.2]}
19... Qf2+ {[%clk 0:01:45.5]} 20. Kd1 {[%clk 0:01:52.8]} 20... Qxg1+ {[%clk
0:01:44.9]} 21. Kc2 {[%clk 0:01:52.9]} 21... Qxa1 {[%clk 0:01:41.6]} 22. Bxb5+
{[%clk 0:01:47.1]} 22... axb5 {[%clk 0:01:32.5]} 23. Qxd6 {[%clk 0:01:46.8]}
23... Rxg2+ {[%clk 0:01:32.3]} 0-1

[Event "Early-Titled-Tuesday-Blitz-February-06-2024"]
[Site "Chess.com"]
[Date "2024.02.06"]
[Round "5"]
[White "Akewjon"]
[Black "Maxfan2008"]
[Result "1-0"]
[WhiteElo "2766"]
[BlackElo "2547"]
[TimeControl "180+1"]
[EndTime "8:52:19 PST"]
[Termination "Akewjon won by checkmate"]

1. Nf3 {[%clk 0:02:10.9]} 1... d5 {[%clk 0:02:59.2]} 2. e3 {[%clk 0:02:09.6]}
2... Nf6 {[%clk 0:02:58.7]} 3. c4 {[%clk 0:02:09.3]} 3... c6 {[%clk 0:02:58.5]}
4. Nc3 {[%clk 0:02:09.1]} 4... e6 {[%clk 0:02:56.4]} 5. d4 {[%clk 0:02:08.3]}
5... Nbd7 {[%clk 0:02:56.4]} 6. b3 {[%clk 0:02:08.3]} 6... Bd6 {[%clk
0:02:53.7]} 7. Bb2 {[%clk 0:02:08.5]} 7... O-O {[%clk 0:02:53.1]} 8. Be2 {[%clk
0:02:08.3]} 8... e5 {[%clk 0:02:43.5]} 9. cxd5 {[%clk 0:01:51.4]} 9... cxd5
{[%clk 0:02:41.7]} 10. dxe5 {[%clk 0:01:52]} 10... Nxe5 {[%clk 0:02:41.5]} 11.
O-O {[%clk 0:01:49]} 11... Bg4 {[%clk 0:02:16.9]} 12. Nxe5 {[%clk 0:01:47.6]}
12... Bxe5 {[%clk 0:02:08.6]} 13. Bxg4 {[%clk 0:01:46.8]} 13... Nxg4 {[%clk
0:02:06.8]} 14. Qxg4 {[%clk 0:01:46.6]} 14... Rc8 {[%clk 0:02:06.9]} 15. Rac1
{[%clk 0:01:44.8]} 15... Qa5 {[%clk 0:01:56.7]} 16. Na4 {[%clk 0:01:11.8]} 16...
Bxb2 {[%clk 0:01:50.8]} 17. Rxc8 {[%clk 0:01:10.9]} 17... Rxc8 {[%clk
0:01:43.6]} 18. Qxc8+ {[%clk 0:01:10.5]} 18... Qd8 {[%clk 0:01:40.7]} 19. Qxd8#
{[%clk 0:01:11]} 1-0

[Event "Early-Titled-Tuesday-Blitz-February-06-2024"]
[Site "Chess.com"]
[Date "2024.02.06"]
[Round "5"]
[White "PabloZarnicki"]
[Black "Chesstiger64"]
[Result "1-0"]
[WhiteElo "2621"]
[BlackElo "2276"]
[TimeControl "180+1"]
[EndTime "8:52:41 PST"]
[Termination "PabloZarnicki won by resignation"]

1. e4 {[%clk 0:03:00.9]} 1... e6 {[%clk 0:02:59.9]} 2. d3 {[%clk 0:02:57.6]}
2... d5 {[%clk 0:03:00.5]} 3. Qe2 {[%clk 0:02:58.3]} 3... Nf6 {[%clk 0:02:57.6]}
4. Nf3 {[%clk 0:02:58.3]} 4... Be7 {[%clk 0:02:56.6]} 5. g3 {[%clk 0:02:57.8]}
5... c5 {[%clk 0:02:56.7]} 6. Bg2 {[%clk 0:02:57.4]} 6... Nc6 {[%clk 0:02:57.3]}
7. e5 {[%clk 0:02:57.9]} 7... Nd7 {[%clk 0:02:56.5]} 8. O-O {[%clk 0:02:58.6]}
8... b6 {[%clk 0:02:55.4]} 9. c4 {[%clk 0:02:57.6]} 9... dxc4 {[%clk 0:02:48.1]}
10. dxc4 {[%clk 0:02:57.4]} 10... Qc7 {[%clk 0:02:47.9]} 11. Bf4 {[%clk
0:02:54.5]} 11... Bb7 {[%clk 0:02:47.2]} 12. Nc3 {[%clk 0:02:54.6]} 12... a6
{[%clk 0:02:46.3]} 13. Nd5 {[%clk 0:02:52.9]} 13... Qd8 {[%clk 0:02:40.5]} 14.
Rad1 {[%clk 0:02:50.1]} 14... O-O {[%clk 0:02:38.9]} 15. Nxe7+ {[%clk
0:02:47.5]} 15... Qxe7 {[%clk 0:02:36.5]} 16. Ng5 {[%clk 0:02:45.3]} 16... Rfe8
{[%clk 0:02:29.4]} 17. Rd6 {[%clk 0:02:30.7]} 17... Nf8 {[%clk 0:02:20.9]} 18.
Bxc6 {[%clk 0:02:28.5]} 18... Bxc6 {[%clk 0:02:20.5]} 19. Rxc6 {[%clk
0:02:29.4]} 19... Ng6 {[%clk 0:02:19.8]} 20. Qe4 {[%clk 0:02:24.4]} 20... Qb7
{[%clk 0:02:09.6]} 21. Rxe6 {[%clk 0:02:15.4]} 21... Qxe4 {[%clk 0:02:06.8]} 22.
Rxe8+ {[%clk 0:02:01.7]} 22... Rxe8 {[%clk 0:02:07.7]} 23. Nxe4 {[%clk
0:02:01.8]} 23... Nxe5 {[%clk 0:02:06.9]} 24. Nd6 {[%clk 0:01:57.6]} 24... Re6
{[%clk 0:02:05.9]} 25. Bxe5 {[%clk 0:01:56.7]} 25... Rxe5 {[%clk 0:02:05.9]} 26.
Nc8 {[%clk 0:01:50.7]} 26... Re2 {[%clk 0:02:01.7]} 27. Rd1 {[%clk 0:01:49.8]}
27... g6 {[%clk 0:01:59.1]} 28. b3 {[%clk 0:01:44.9]} 28... b5 {[%clk
0:01:59.4]} 29. cxb5 {[%clk 0:01:39.5]} 29... axb5 {[%clk 0:02:00.3]} 30. Rc1
{[%clk 0:01:37.4]} 30... c4 {[%clk 0:01:56.8]} 31. bxc4 {[%clk 0:01:35.7]} 31...
bxc4 {[%clk 0:01:57.1]} 32. a4 {[%clk 0:01:35.9]} 32... Re4 {[%clk 0:01:48.2]}
33. Nd6 {[%clk 0:01:30]} 33... Rd4 {[%clk 0:01:47.8]} 34. Nxc4 {[%clk
0:01:29.8]} 34... h5 {[%clk 0:01:46]} 35. a5 {[%clk 0:01:30.1]} 35... h4 {[%clk
0:01:46.1]} 36. gxh4 {[%clk 0:01:28.7]} 36... Rxh4 {[%clk 0:01:45]} 37. a6
{[%clk 0:01:28.5]} 37... Kg7 {[%clk 0:01:45.7]} 38. a7 {[%clk 0:01:28]} 38...
Rh8 {[%clk 0:01:46.3]} 39. Nb6 {[%clk 0:01:28.3]} 39... Ra8 {[%clk 0:01:44.9]}
40. Nxa8 {[%clk 0:01:27.9]} 1-0

[Event "Early-Titled-Tuesday-Blitz-February-06-2024"]
[Site "Chess.com"]
[Date "2024.02.06"]
[Round "5"]
[White "Willi_Skibbe"]
[Black "Flawless_Fighter"]
[Result "0-1"]
[WhiteElo "2332"]
[BlackElo "2731"]
[TimeControl "180+1"]
[EndTime "8:52:42 PST"]
[Termination "Flawless_Fighter won by resignation"]

1. d4 {[%clk 0:03:00.9]} 1... Nf6 {[%clk 0:02:59.6]} 2. Nf3 {[%clk 0:02:57.4]}
2... d5 {[%clk 0:02:59.4]} 3. e3 {[%clk 0:02:51.7]} 3... c5 {[%clk 0:02:58.5]}
4. Nbd2 {[%clk 0:02:50.7]} 4... Nc6 {[%clk 0:02:58.9]} 5. dxc5 {[%clk
0:02:49.9]} 5... e6 {[%clk 0:02:55.6]} 6. a3 {[%clk 0:02:44.3]} 6... a5 {[%clk
0:02:54.1]} 7. c4 {[%clk 0:02:42.8]} 7... Bxc5 {[%clk 0:02:52.5]} 8. cxd5 {[%clk
0:02:43]} 8... exd5 {[%clk 0:02:50.5]} 9. b3 {[%clk 0:02:42.6]} 9... O-O {[%clk
0:02:50.1]} 10. Bb2 {[%clk 0:02:32.6]} 10... d4 {[%clk 0:02:44.1]} 11. exd4
{[%clk 0:02:29.7]} 11... Nxd4 {[%clk 0:02:41.2]} 12. Nxd4 {[%clk 0:02:28.4]}
12... Bxd4 {[%clk 0:02:42.1]} 13. Bxd4 {[%clk 0:02:27.9]} 13... Qxd4 {[%clk
0:02:42.5]} 14. Be2 {[%clk 0:02:27.4]} 14... Rd8 {[%clk 0:02:32.5]} 15. Qc1
{[%clk 0:02:20.9]} 15... Bg4 {[%clk 0:02:23.8]} 16. Nf3 {[%clk 0:01:50.8]} 16...
Bxf3 {[%clk 0:02:20.3]} 17. gxf3 {[%clk 0:01:51.1]} 17... Re8 {[%clk 0:02:17.4]}
18. Kf1 {[%clk 0:01:51]} 18... Rac8 {[%clk 0:02:12]} 19. Qd1 {[%clk 0:01:46.5]}
19... Qh4 {[%clk 0:02:10.8]} 20. h3 {[%clk 0:01:45.7]} 20... Rcd8 {[%clk
0:02:03.2]} 21. Qc2 {[%clk 0:01:44.2]} 21... Nd5 {[%clk 0:01:58.4]} 22. Bb5
{[%clk 0:01:34.1]} 22... Re5 {[%clk 0:01:52.1]} 23. Rd1 {[%clk 0:01:20.8]} 23...
g6 {[%clk 0:01:41.4]} 24. Bc4 {[%clk 0:01:18.6]} 24... Nf4 {[%clk 0:01:39.9]}
25. Rxd8+ {[%clk 0:01:08.1]} 25... Qxd8 {[%clk 0:01:40.8]} 26. Kg1 {[%clk
0:01:08.3]} 26... Qg5+ {[%clk 0:01:38.8]} 0-1

[Event "Early-Titled-Tuesday-Blitz-February-06-2024"]
[Site "Chess.com"]
[Date "2024.02.06"]
[Round "5"]
[White "volkanyirik"]
[Black "JiiHart"]
[Result "1-0"]
[WhiteElo "2395"]
[BlackElo "2150"]
[TimeControl "180+1"]
[EndTime "8:52:44 PST"]
[Termination "volkanyirik won by resignation"]

1. e4 {[%clk 0:03:00.9]} 1... c5 {[%clk 0:02:55.6]} 2. Nc3 {[%clk 0:03:00.1]}
2... e6 {[%clk 0:02:55.1]} 3. Bc4 {[%clk 0:02:59.3]} 3... Nc6 {[%clk 0:02:53.7]}
4. f4 {[%clk 0:02:58.3]} 4... a6 {[%clk 0:02:51.2]} 5. a4 {[%clk 0:02:57.9]}
5... d6 {[%clk 0:02:44.9]} 6. d3 {[%clk 0:02:57.4]} 6... Nf6 {[%clk 0:02:44]} 7.
Nf3 {[%clk 0:02:57.3]} 7... d5 {[%clk 0:02:38.7]} 8. exd5 {[%clk 0:02:50.5]}
8... exd5 {[%clk 0:02:37.9]} 9. Ba2 {[%clk 0:02:51.4]} 9... Bg4 {[%clk
0:02:35.4]} 10. h3 {[%clk 0:02:49.9]} 10... Bxf3 {[%clk 0:02:17.1]} 11. Qxf3
{[%clk 0:02:50.8]} 11... Nd4 {[%clk 0:02:17.5]} 12. Qd1 {[%clk 0:02:50.2]} 12...
b5 {[%clk 0:02:04]} 13. O-O {[%clk 0:02:47]} 13... Be7 {[%clk 0:01:56.9]} 14.
Be3 {[%clk 0:02:41.2]} 14... Nf5 {[%clk 0:01:48.5]} 15. Bf2 {[%clk 0:02:41]}
15... b4 {[%clk 0:01:45.2]} 16. Ne2 {[%clk 0:02:41]} 16... O-O {[%clk
0:01:43.5]} 17. g4 {[%clk 0:02:39]} 17... Nd4 {[%clk 0:00:34.7]} 18. Nxd4 {[%clk
0:02:37.9]} 18... cxd4 {[%clk 0:00:35.6]} 19. Bxd4 {[%clk 0:02:38.1]} 19... Rc8
{[%clk 0:00:27]} 20. Rc1 {[%clk 0:02:34.1]} 20... Bc5 {[%clk 0:00:26.8]} 21.
Bxc5 {[%clk 0:02:33.9]} 21... Rxc5 {[%clk 0:00:27.1]} 22. Qf3 {[%clk 0:02:30.8]}
22... Qc7 {[%clk 0:00:25.7]} 23. Rf2 {[%clk 0:02:26]} 23... Rc8 {[%clk
0:00:23.9]} 24. g5 {[%clk 0:02:25.5]} 24... Ne8 {[%clk 0:00:23.4]} 25. Bxd5
{[%clk 0:02:24.1]} 25... Qb6 {[%clk 0:00:23.2]} 26. Kg2 {[%clk 0:02:20.8]} 26...
Rxc2 {[%clk 0:00:22.7]} 27. Rcxc2 {[%clk 0:02:18.6]} 1-0

[Event "Early-Titled-Tuesday-Blitz-February-06-2024"]
[Site "Chess.com"]
[Date "2024.02.06"]
[Round "5"]
[White "Leonid_Starozhilov"]
[Black "rubicapa"]
[Result "1-0"]
[WhiteElo "2713"]
[BlackElo "2450"]
[TimeControl "180+1"]
[EndTime "8:52:48 PST"]
[Termination "Leonid_Starozhilov won by resignation"]

1. e4 {[%clk 0:03:00.9]} 1... c5 {[%clk 0:02:58.1]} 2. Nf3 {[%clk 0:03:00.7]}
2... d6 {[%clk 0:02:58.1]} 3. Bb5+ {[%clk 0:03:00.7]} 3... Nd7 {[%clk
0:02:56.4]} 4. O-O {[%clk 0:03:00.7]} 4... Nf6 {[%clk 0:02:56.5]} 5. Re1 {[%clk
0:03:00.8]} 5... a6 {[%clk 0:02:56.6]} 6. Bxd7+ {[%clk 0:03:01.2]} 6... Bxd7
{[%clk 0:02:51.7]} 7. c3 {[%clk 0:03:02.1]} 7... Bc6 {[%clk 0:02:48.6]} 8. d4
{[%clk 0:02:59.4]} 8... cxd4 {[%clk 0:02:48.4]} 9. cxd4 {[%clk 0:02:59.4]} 9...
Bxe4 {[%clk 0:02:42.6]} 10. Nc3 {[%clk 0:02:51]} 10... Bg6 {[%clk 0:02:22.6]}
11. d5 {[%clk 0:02:38.2]} 11... Bh5 {[%clk 0:02:16.9]} 12. Bg5 {[%clk
0:02:33.8]} 12... h6 {[%clk 0:02:14.5]} 13. Bxf6 {[%clk 0:02:09.4]} 13... gxf6
{[%clk 0:02:15.4]} 14. Ne4 {[%clk 0:01:24.3]} 14... Bg7 {[%clk 0:02:05.7]} 15.
Ng3 {[%clk 0:01:24.5]} 15... Bg6 {[%clk 0:02:02.6]} 16. Nh4 {[%clk 0:01:13.1]}
16... Kf8 {[%clk 0:01:48.7]} 17. Qg4 {[%clk 0:00:50.9]} 17... h5 {[%clk
0:01:47.3]} 18. Nxg6+ {[%clk 0:00:49.5]} 18... fxg6 {[%clk 0:01:47.4]} 19. Qxg6
{[%clk 0:00:49.5]} 19... Qe8 {[%clk 0:01:44.9]} 20. Qe4 {[%clk 0:00:43]} 20...
h4 {[%clk 0:01:42.1]} 21. Nf5 {[%clk 0:00:43.3]} 1-0

[Event "Early-Titled-Tuesday-Blitz-February-06-2024"]
[Site "Chess.com"]
[Date "2024.02.06"]
[Round "5"]
[White "marcodobrikov"]
[Black "amintabatabaei"]
[Result "0-1"]
[WhiteElo "2679"]
[BlackElo "2952"]
[TimeControl "180+1"]
[EndTime "8:53:06 PST"]
[Termination "amintabatabaei won by resignation"]

1. d4 {[%clk 0:02:52.7]} 1... d6 {[%clk 0:02:56.8]} 2. Bf4 {[%clk 0:02:52.3]}
2... Nf6 {[%clk 0:02:50.3]} 3. e3 {[%clk 0:02:51.6]} 3... g6 {[%clk 0:02:48.2]}
4. c3 {[%clk 0:02:51.2]} 4... Bg7 {[%clk 0:02:48.9]} 5. Nd2 {[%clk 0:02:50.5]}
5... O-O {[%clk 0:02:49.5]} 6. Bg3 {[%clk 0:02:50.1]} 6... Nh5 {[%clk
0:02:47.7]} 7. Ngf3 {[%clk 0:02:49]} 7... Nxg3 {[%clk 0:02:47.7]} 8. hxg3 {[%clk
0:02:49.9]} 8... e5 {[%clk 0:02:46.9]} 9. Be2 {[%clk 0:02:48.9]} 9... Nd7 {[%clk
0:02:47.2]} 10. Qb3 {[%clk 0:02:46.5]} 10... c6 {[%clk 0:02:47.1]} 11. Ne4
{[%clk 0:02:42.9]} 11... d5 {[%clk 0:02:44.9]} 12. Ned2 {[%clk 0:02:36.1]} 12...
e4 {[%clk 0:02:44.1]} 13. Ng1 {[%clk 0:02:32.4]} 13... a5 {[%clk 0:02:44.4]} 14.
Nh3 {[%clk 0:02:31]} 14... a4 {[%clk 0:02:44.4]} 15. Qc2 {[%clk 0:02:28]} 15...
b5 {[%clk 0:02:44.9]} 16. O-O {[%clk 0:02:22.1]} 16... h5 {[%clk 0:02:44.7]} 17.
b3 {[%clk 0:02:18.2]} 17... h4 {[%clk 0:02:44]} 18. g4 {[%clk 0:02:13.8]} 18...
Nf6 {[%clk 0:02:36.3]} 19. f3 {[%clk 0:02:08.6]} 19... Qe7 {[%clk 0:02:36.5]}
20. g5 {[%clk 0:02:02.9]} 20... exf3 {[%clk 0:02:19.1]} 21. gxf6 {[%clk
0:02:01.2]} 21... Qxe3+ {[%clk 0:02:19.3]} 22. Rf2 {[%clk 0:01:57.8]} 22... fxe2
{[%clk 0:02:07.1]} 23. Re1 {[%clk 0:01:51.9]} 23... axb3 {[%clk 0:02:02.4]} 24.
axb3 {[%clk 0:01:48.5]} 24... Bf5 {[%clk 0:01:52]} 25. Qc1 {[%clk 0:01:46]}
25... Bh6 {[%clk 0:01:45.7]} 26. Rxe2 {[%clk 0:01:44.2]} 26... Qg3 {[%clk
0:01:46.4]} 27. Qe1 {[%clk 0:01:28.1]} 27... Bxh3 {[%clk 0:01:43.5]} 28. Nf1
{[%clk 0:01:20.5]} 28... Qg5 {[%clk 0:01:42.2]} 29. Re5 {[%clk 0:01:20.4]} 29...
Bf5 {[%clk 0:01:42.7]} 30. Nh2 {[%clk 0:01:05.5]} 30... Qc1 {[%clk 0:01:35.7]}
31. Qxc1 {[%clk 0:01:03.5]} 31... Bxc1 {[%clk 0:01:36.6]} 32. Nf3 {[%clk
0:01:03.9]} 32... Rfe8 {[%clk 0:01:35]} 33. Nxh4 {[%clk 0:01:03.8]} 33... Rxe5
{[%clk 0:01:35]} 34. dxe5 {[%clk 0:01:04.7]} 34... Be3 {[%clk 0:01:35.3]} 0-1

[Event "Early-Titled-Tuesday-Blitz-February-06-2024"]
[Site "Chess.com"]
[Date "2024.02.06"]
[Round "5"]
[White "starworld123"]
[Black "ozates"]
[Result "1-0"]
[WhiteElo "2832"]
[BlackElo "2630"]
[TimeControl "180+1"]
[EndTime "8:53:14 PST"]
[Termination "starworld123 won by resignation"]

1. Nf3 {[%clk 0:03:00.9]} 1... c5 {[%clk 0:02:58]} 2. e3 {[%clk 0:03:00]} 2...
Nc6 {[%clk 0:02:56.5]} 3. d4 {[%clk 0:02:57.3]} 3... cxd4 {[%clk 0:02:57.4]} 4.
exd4 {[%clk 0:02:57.2]} 4... d5 {[%clk 0:02:58.1]} 5. c3 {[%clk 0:02:56.1]} 5...
Nf6 {[%clk 0:02:54.1]} 6. Be2 {[%clk 0:02:53.1]} 6... Bf5 {[%clk 0:02:53.9]} 7.
Bf4 {[%clk 0:02:53.3]} 7... e6 {[%clk 0:02:54.3]} 8. Nbd2 {[%clk 0:02:53.4]}
8... Bd6 {[%clk 0:02:54.8]} 9. Bxd6 {[%clk 0:02:53.1]} 9... Qxd6 {[%clk
0:02:55.7]} 10. O-O {[%clk 0:02:52.9]} 10... h6 {[%clk 0:02:56]} 11. Re1 {[%clk
0:02:50.4]} 11... O-O {[%clk 0:02:55.8]} 12. a4 {[%clk 0:02:42.9]} 12... Rab8
{[%clk 0:02:54.3]} 13. h3 {[%clk 0:02:31.4]} 13... Rfe8 {[%clk 0:02:54.4]} 14.
Ne5 {[%clk 0:02:30.8]} 14... Nd7 {[%clk 0:02:40.5]} 15. Nxd7 {[%clk 0:02:25.2]}
15... Qxd7 {[%clk 0:02:40.6]} 16. Nf3 {[%clk 0:02:25.8]} 16... a6 {[%clk
0:02:34.5]} 17. a5 {[%clk 0:02:19]} 17... Qc7 {[%clk 0:02:33]} 18. Qa4 {[%clk
0:02:19]} 18... Re7 {[%clk 0:02:06.4]} 19. Nd2 {[%clk 0:02:18.2]} 19... Rbe8
{[%clk 0:02:04]} 20. Bf3 {[%clk 0:02:09.4]} 20... Qd6 {[%clk 0:02:02.6]} 21. Qa2
{[%clk 0:01:44.2]} 21... e5 {[%clk 0:01:49.4]} 22. Qxd5 {[%clk 0:01:39.6]} 22...
Qxd5 {[%clk 0:01:47.5]} 23. Bxd5 {[%clk 0:01:40.5]} 23... exd4 {[%clk
0:01:48.1]} 24. Rxe7 {[%clk 0:01:39.9]} 24... Rxe7 {[%clk 0:01:49]} 25. cxd4
{[%clk 0:01:36.4]} 25... Nxd4 {[%clk 0:01:48.3]} 26. Nc4 {[%clk 0:01:26.4]}
26... Nb3 {[%clk 0:01:33.2]} 27. Ra3 {[%clk 0:01:20.4]} 27... Nc1 {[%clk
0:01:22.7]} 28. Nd6 {[%clk 0:01:10.9]} 28... Re1+ {[%clk 0:01:16.7]} 29. Kh2
{[%clk 0:01:10.6]} 29... Nd3 {[%clk 0:01:12.2]} 30. Nxf5 {[%clk 0:01:07.5]} 1-0

[Event "Early-Titled-Tuesday-Blitz-February-06-2024"]
[Site "Chess.com"]
[Date "2024.02.06"]
[Round "5"]
[White "FormerProdigy"]
[Black "Crazy_girl99"]
[Result "1-0"]
[WhiteElo "3017"]
[BlackElo "2616"]
[TimeControl "180+1"]
[EndTime "8:53:20 PST"]
[Termination "FormerProdigy won by resignation"]

1. e4 {[%clk 0:03:00.9]} 1... e5 {[%clk 0:02:56]} 2. Nf3 {[%clk 0:03:01.2]} 2...
Nc6 {[%clk 0:02:54.4]} 3. a4 {[%clk 0:03:01.6]} 3... Nf6 {[%clk 0:02:53.5]} 4.
Nc3 {[%clk 0:03:01.1]} 4... Bc5 {[%clk 0:02:52.4]} 5. Nxe5 {[%clk 0:03:00.2]}
5... Bxf2+ {[%clk 0:02:52.4]} 6. Kxf2 {[%clk 0:03:00.3]} 6... Nxe5 {[%clk
0:02:53.1]} 7. d4 {[%clk 0:02:50.2]} 7... Neg4+ {[%clk 0:02:51.4]} 8. Kg1 {[%clk
0:02:50.3]} 8... d5 {[%clk 0:02:47.2]} 9. h3 {[%clk 0:02:43]} 9... Nh6 {[%clk
0:02:39.5]} 10. Bg5 {[%clk 0:02:05.5]} 10... dxe4 {[%clk 0:02:28.2]} 11. Nxe4
{[%clk 0:02:06.4]} 11... Nhg8 {[%clk 0:02:28.5]} 12. Bc4 {[%clk 0:01:53]} 12...
h6 {[%clk 0:02:23.2]} 13. Nxf6+ {[%clk 0:01:43.9]} 13... Nxf6 {[%clk 0:02:22.5]}
14. Qe2+ {[%clk 0:01:44.4]} 14... Kf8 {[%clk 0:02:01.4]} 15. Bxf6 {[%clk
0:01:41.9]} 15... Qxf6 {[%clk 0:01:59]} 16. Rf1 {[%clk 0:01:30.8]} 16... Qxd4+
{[%clk 0:01:46.9]} 17. Kh2 {[%clk 0:01:31.2]} 17... Qd6+ {[%clk 0:01:39.3]} 18.
g3 {[%clk 0:01:31.7]} 18... f5 {[%clk 0:01:09.6]} 19. Rd1 {[%clk 0:01:32]} 19...
Qe7 {[%clk 0:01:01.3]} 20. Rhe1 {[%clk 0:01:32.4]} 20... Qxe2+ {[%clk
0:00:50.8]} 21. Rxe2 {[%clk 0:01:33.3]} 21... Be6 {[%clk 0:00:30.1]} 22. Rxe6
{[%clk 0:01:30.4]} 22... Re8 {[%clk 0:00:30]} 23. Rd7 {[%clk 0:01:30.3]} 23...
Rxe6 {[%clk 0:00:29.3]} 24. Bxe6 {[%clk 0:01:31.2]} 24... Ke8 {[%clk 0:00:28.4]}
25. Rxc7 {[%clk 0:01:31.8]} 25... Rf8 {[%clk 0:00:28.8]} 26. Rc8+ {[%clk
0:01:31.1]} 1-0

[Event "Early-Titled-Tuesday-Blitz-February-06-2024"]
[Site "Chess.com"]
[Date "2024.02.06"]
[Round "5"]
[White "Bilan_Danila"]
[Black "Marcan2b"]
[Result "0-1"]
[WhiteElo "2612"]
[BlackElo "3012"]
[TimeControl "180+1"]
[EndTime "8:53:21 PST"]
[Termination "Marcan2b won by resignation"]

1. d4 {[%clk 0:03:00.9]} 1... Nf6 {[%clk 0:02:57.9]} 2. Nf3 {[%clk 0:02:59.6]}
2... c5 {[%clk 0:02:56.4]} 3. e3 {[%clk 0:02:58.7]} 3... g6 {[%clk 0:02:55]} 4.
c3 {[%clk 0:02:58.5]} 4... Bg7 {[%clk 0:02:55.1]} 5. Nbd2 {[%clk 0:02:58.4]}
5... O-O {[%clk 0:02:55.6]} 6. Bc4 {[%clk 0:02:49.7]} 6... d5 {[%clk 0:02:52.4]}
7. Bd3 {[%clk 0:02:49.4]} 7... Nbd7 {[%clk 0:02:52.1]} 8. O-O {[%clk 0:02:48.6]}
8... b6 {[%clk 0:02:52.4]} 9. e4 {[%clk 0:02:45.5]} 9... dxe4 {[%clk 0:02:52.4]}
10. Nxe4 {[%clk 0:02:45.1]} 10... Bb7 {[%clk 0:02:53.3]} 11. Re1 {[%clk
0:02:26.8]} 11... cxd4 {[%clk 0:02:50.4]} 12. Nxd4 {[%clk 0:02:22.5]} 12... Nxe4
{[%clk 0:02:48]} 13. Bxe4 {[%clk 0:02:22.1]} 13... Bxe4 {[%clk 0:02:48.9]} 14.
Rxe4 {[%clk 0:02:22.4]} 14... Nc5 {[%clk 0:02:49.6]} 15. Re1 {[%clk 0:02:16.2]}
15... e5 {[%clk 0:02:49.4]} 16. Nc6 {[%clk 0:02:00.7]} 16... Qc7 {[%clk
0:02:47.1]} 17. Qd5 {[%clk 0:01:54]} 17... Rfe8 {[%clk 0:02:42.3]} 18. Bg5
{[%clk 0:01:26.6]} 18... Rac8 {[%clk 0:02:39.3]} 19. Nb4 {[%clk 0:01:06.7]}
19... h6 {[%clk 0:02:38.7]} 20. Bh4 {[%clk 0:01:04.3]} 20... g5 {[%clk
0:02:37.2]} 21. Bg3 {[%clk 0:01:04.3]} 21... a5 {[%clk 0:02:37.5]} 22. Nc2
{[%clk 0:00:54.8]} 22... Rcd8 {[%clk 0:02:34.6]} 23. Qc4 {[%clk 0:00:48.7]}
23... Rd2 {[%clk 0:02:30]} 24. Re2 {[%clk 0:00:33]} 24... Qd7 {[%clk 0:02:24.9]}
25. Rae1 {[%clk 0:00:28.2]} 25... Rxe2 {[%clk 0:02:23.2]} 26. Qxe2 {[%clk
0:00:27]} 26... f5 {[%clk 0:02:23.8]} 27. f4 {[%clk 0:00:20.8]} 27... gxf4
{[%clk 0:02:10.2]} 28. Bxf4 {[%clk 0:00:20.2]} 28... Nd3 {[%clk 0:02:10.5]} 29.
Rd1 {[%clk 0:00:14.9]} 29... Nxf4 {[%clk 0:02:10.1]} 30. Qc4+ {[%clk 0:00:06.1]}
30... Qe6 {[%clk 0:02:09]} 0-1